bitfinex-derivatives/quotes_SOLF0:USTF0_20241222
["timestamp","ask_amount","ask_price","bid_price","bid_amount"]
[1734872885168,3.16,185.42,185.32,3.1665]
[1734872885759,3.16,185.42,185.32,5.8662]
[1734872885967,3.16,185.42,185.32,3.1665]
[1734872886172,2.6994,185.35,185.32,3.1665]
[1734872886469,3.4,185.37,185.32,3.1665]
[1734872886865,2.6996,185.33,185.32,3.1665]
[1734872887764,3.4,185.36,185.32,3.1665]
[1734872887963,6.0993,185.36,185.32,3.1665]
[1734872888263,3.4,185.36,185.32,3.1665]
[1734872888471,2.6993,185.35,185.32,3.1665]
[1734872889370,3.4,185.36,185.32,3.1665]
[1734872889671,6.0993,185.36,185.32,3.1665]
[1734872889968,3.4,185.36,185.32,3.1665]
[1734872890867,2.6996,185.34,185.27,4.3425]
[1734872891067,3.4,185.36,185.27,1.6422]
[1734872891267,3.4,185.36,185.23,3.2722]
[1734872891476,3.4,185.36,185.23,4.9599]
[1734872891770,20.52210947,185.51,185.23,8.3599]
[1734872891970,2.6995,185.34,185.23,8.3599]
[1734872892174,2.6995,185.34,185.24,3.4]
[1734872892670,2.6996,185.33,185.28,2.7003]
[1734872893275,2.6995,185.34,185.29,2.7002]
[1734872893470,3.4,185.36,185.23,8.3599]
[1734872893669,3.4,185.36,185.28,2.7002]
[1734872893865,3.4,185.36,185.11,16.2]
[1734872894066,3.4,185.36,185.13,16.2]
[1734872894374,2.6986,185.4,185.15,16.2]
[1734872894675,2.6986,185.4,185.17,21.6038]
[1734872894975,3.4,185.47,185.38,2.6988]
[1734872895172,3.4,185.47,185.19,21.6032]
[1734872895379,0.89583521,185.46,185.31,2.6997]
[1734872895674,2.699,185.37,185.32,4.9471]
[1734872895874,3.4,185.4,185.32,4.9471]
[1734872896073,3.4,185.41,185.32,7.6468]
[1734872896673,3.4,185.41,185.32,4.9471]
[1734872897274,2.6993,185.35,185.32,4.9471]
[1734872897978,3.4,185.41,185.32,4.9471]
[1734872899675,16.19,185.55,185.32,4.9471]
[1734872899876,16.19,185.53,185.34,2.6994]
[1734872900077,0.89571782,185.52,185.34,2.6994]
[1734872900576,0.89571782,185.52,185.32,4.9471]
[1734872900780,2.6983,185.43,185.32,4.9471]
[1734872900979,3.4,185.44,185.32,4.9471]
[1734872901882,2.699,185.38,185.32,7.6467]
[1734872902178,3.4,185.44,185.32,7.6467]
[1734872902179,3.4,185.44,185.32,4.9471]
[1734872902381,2.699,185.38,185.32,7.6468]
[1734872902578,2.699,185.38,185.32,4.9471]
[1734872902779,3.4,185.44,185.32,4.9471]
[1734872903379,2.6985,185.41,185.32,7.6467]
[1734872903580,3.4,185.44,185.32,7.6467]
[1734872903781,3.4,185.44,185.32,4.9471]
[1734872903976,20.5106519,185.55,185.32,4.9471]
[1734872903977,16.19,185.55,185.32,4.9471]
[1734872904183,4.29518997,185.54,185.32,4.9471]
[1734872904376,0.89518997,185.53,185.32,4.9471]
[1734872905481,1.07805088,185.52,185.32,4.9471]
[1734872905676,0.89518997,185.51,185.32,4.9471]
[1734872906477,2.6999,185.31,185.25,2.7007]
[1734872906681,2.6999,185.31,185.26,1.6911]
[1734872906882,2.6998,185.32,185.27,2.7004]
[1734872907283,3.4,185.33,185.28,1.6465]
[1734872907885,2.6998,185.32,185.28,1.6465]
[1734872908084,3.4,185.33,185.28,1.6465]
[1734872908481,2.6998,185.32,185.28,1.6465]
[1734872908687,16.19,185.44,185.28,1.6465]
[1734872908888,4.29498442,185.43,185.28,1.6465]
[1734872909082,2.6995,185.34,185.29,2.7002]
[1734872909583,0.0874,185.34,185.29,2.7002]
[1734872909781,3.4,185.37,185.29,2.7002]
[1734872909978,3.4,185.37,185.28,1.6465]
[1734872911481,3.4,185.37,185.24,1.683]
[1734872912385,3.4,185.37,185.24,4.3839]
[1734872913379,3.4,185.37,185.24,1.683]
[1734872914587,3.4,185.37,185.26,2.7006]
[1734872915689,3.4,185.37,185.25,1.7383]
[1734872916189,3.4,185.37,185.25,4.439]
[1734872916682,3.4,185.37,185.25,1.7383]
[1734872917286,3.4,185.37,185.27,2.7005]
[1734872917482,3.4,185.37,185.25,1.7383]
[1734872917892,3.3,185.36,185.29,2.7001]
[1734872918084,3.3,185.37,185.3,1.6974]
[1734872918294,3.3,185.37,185.31,1.6106]
[1734872919596,3.3,185.39,185.31,4.3104]
[1734872919788,5.97872327,185.47,185.32,1.6301]
[1734872920088,4.19405721,185.46,185.32,1.6301]
[1734872920295,0.89405721,185.45,185.32,1.6301]
[1734872920491,0.89406097,185.44,185.32,1.6301]
[1734872920693,3.3,185.46,185.32,4.3298]
[1734872920994,0.8940615,185.45,185.32,1.6301]
[1734872921196,0.8940615,185.45,185.32,4.3298]
[1734872921395,3.3,185.44,185.32,4.3298]
[1734872922095,3.3,185.44,185.31,1.6106]
[1734872922289,0.89407487,185.43,185.31,1.6106]
[1734872922999,0.89407487,185.43,185.26,13.22874505]
[1734872923199,0.89407487,185.43,185.29,1.698]
[1734872923399,0.89411757,185.42,185.29,4.3982]
[1734872923600,7.63832327,185.44,185.29,1.698]
[1734872923796,4.1943252,185.43,185.29,1.698]
[1734872924000,3.3,185.43,185.31,2.6998]
[1734872924299,3.3,185.43,185.29,1.698]
[1734872924699,0.89411614,185.42,185.29,1.698]
[1734872925000,0.89411614,185.42,185.24,72.11616108]
[1734872925198,0.89411614,185.42,185.25,1.6309]
[1734872925396,29.08856826,185.42,185.25,1.6309]
[1734872925598,5.23243941,185.41,185.25,1.6309]
[1734872925798,2.54311614,185.4,185.25,1.6309]
[1734872925995,4.19411614,185.39,185.25,1.6309]
[1734872926299,0.89411614,185.38,185.25,1.6309]
[1734872926898,0.8941277,185.37,185.25,1.6309]
[1734872927104,3.3,185.39,185.25,1.6309]
[1734872927306,0.89412153,185.38,185.25,1.6309]
[1734872929409,0.89412153,185.38,185.25,4.3317]
[1734872929705,0.89410868,185.37,185.25,4.3317]
[1734872930006,17.23024082,185.39,185.25,1.6309]
[1734872930307,0.89410323,185.38,185.25,1.6309]
[1734872932307,0.89429859,185.37,185.25,1.6309]
[1734872932507,0.89429859,185.36,185.25,1.6309]
[1734872932702,24.90402746,185.39,185.25,1.6309]
[1734872932908,0.8942913,185.38,185.25,1.6309]
[1734872933611,29.0962892,185.38,185.25,1.6309]
[1734872933911,31.01453212,185.37,185.23,1.6647]
[1734872934105,29.0962892,185.36,185.21,0.20155]
[1734872934302,5.23261457,185.35,185.21,0.20155]
[1734872934507,4.1942913,185.34,185.21,0.20155]
[1734872934811,0.89415035,185.33,185.21,0.20155]
[1734872935820,0.89415035,185.33,185.22,2.7011]
[1734872936713,0.89415035,185.33,185.21,0.20155]
[1734872940623,1.7165,185.32,185.21,0.20155]
[1734872940819,0.89415035,185.31,185.21,0.20155]
[1734872941422,0.89415035,185.31,185.23,2.701]
[1734872941721,3.3,185.33,185.22,1.6901]
[1734872942114,3.3,185.33,185.25,2.7006]
[1734872942318,3.3,185.33,185.26,1.7194]
[1734872942920,29.65165084,185.43,185.27,1.6319]
[1734872943119,8.59694229,185.42,185.27,1.6319]
[1734872943323,4.19487749,185.41,185.27,1.6319]
[1734872943519,0.8950321,185.4,185.27,1.6319]
[1734872943719,0.89514179,185.41,185.27,1.6319]
[1734872943920,16.19,185.52,185.27,1.6319]
[1734872943921,29.65165084,185.47,185.27,1.6319]
[1734872944120,5.30065918,185.46,185.37,2.699]
[1734872944326,0.89526243,185.45,185.38,3.2687]
[1734872944619,29.65165084,185.47,185.38,5.9676]
[1734872944824,29.65165084,185.47,185.38,6.5687]
[1734872945122,89.83429445,185.5,185.38,6.5687]
[1734872945123,1.07816711,185.5,185.38,6.5687]
[1734872945325,15.11950924,185.51,185.38,6.5687]
[1734872945628,10.71291271,185.51,185.38,6.5687]
[1734872945921,0.89502579,185.5,185.39,2.6987]
[1734872946114,3.3,185.51,185.38,6.5687]
[1734872946313,3.3,185.51,185.43,2.6981]
[1734872946517,4.4041744,185.57,185.43,3.24]
[1734872946719,0.89504555,185.56,185.43,3.24]
[1734872946920,10.65291271,185.58,185.47,2.6975]
[1734872947216,3.24,185.58,185.48,3.246]
[1734872948121,3.24,185.58,185.48,1.7171]
[1734872948422,0.89484218,185.57,185.42,3.24]
[1734872948623,0.89484218,185.57,185.43,1.7171]
[1734872948820,0.89484218,185.57,185.43,4.4152]
[1734872949021,0.89484218,185.57,185.43,1.7171]
[1734872949320,3.24,185.58,185.43,1.7171]
[1734872949521,0.89531524,185.57,185.43,4.4152]
[1734872949725,0.89531524,185.57,185.43,1.7171]
[1734872950028,7.66978247,185.63,185.47,2.6975]
[1734872950224,4.13538133,185.62,185.48,3.2555]
[1734872950419,0.89538133,185.61,185.48,5.9529]
[1734872950918,0.89538133,185.61,185.48,3.2555]
[1734872951218,3.24,185.6,185.5,2.6971]
[1734872951425,3.2677,185.63,185.5,2.6971]
[1734872951624,0.89547327,185.62,185.51,1.6079]
[1734872951820,3.22,185.61,185.51,1.6079]
[1734872952224,61.78,185.64,185.51,1.6079]
[1734872952528,3.22,185.62,185.51,1.6079]
[1734872952725,3.22,185.63,185.51,1.6079]
[1734872952923,3.22,185.64,185.56,2.6962]
[1734872953123,3.22,185.65,185.52,3.22]
[1734872953419,3.22,185.67,185.59,2.6958]
[1734872953624,3.22,185.67,185.6,4.9002]
[1734872954124,3.22,185.67,185.6,7.5959]
[1734872954527,3.22,185.67,185.6,4.9002]
[1734872954821,3.22,185.67,185.54,2.6964]
[1734872956514,3.22,185.67,185.53,4.8915]
[1734872957521,3.22,185.67,185.44,3.22]
[1734872957522,4.25663482,185.66,185.44,3.22]
[1734872957727,4.25663482,185.66,185.37,43.28648376]
[1734872957728,0.89583482,185.65,185.46,2.6976]
[1734872959021,0.89583482,185.65,185.45,4.9099]
[1734872959227,0.89583482,185.65,185.47,2.6974]
[1734872959422,19.5508,185.66,185.47,2.6974]
[1734872959725,19.5508,185.66,185.48,2.6973]
[1734872959726,0.89540055,185.65,185.48,2.6973]
[1734872959925,0.89540055,185.65,185.45,4.9099]
[1734872960125,3.3608,185.66,185.45,4.9099]
[1734872960323,3.3608,185.66,185.56,2.6962]
[1734872960520,3.3608,185.66,185.52,3.22]
[1734872960825,3.3608,185.66,185.54,2.6964]
[1734872961121,3.3608,185.66,185.53,3.194]
[1734872963431,3.3608,185.66,185.54,1.6056]
[1734872965532,3.3608,185.66,185.54,4.3021]
[1734872965722,3.22,185.67,185.54,1.6056]
[1734872966528,3.22,185.67,185.55,2.6964]
[1734872968524,19.5593,185.73,185.55,2.6964]
[1734872968731,20.30510134,185.72,185.54,1.6056]
[1734872968927,0.89510134,185.71,185.54,1.6056]
[1734872969232,0.89510134,185.71,185.5,2.6971]
[1734872969528,0.89510134,185.71,185.51,4.7959]
[1734872969825,0.89510134,185.71,185.51,7.4927]
[1734872970420,0.89510134,185.71,185.52,2.6968]
[1734872971433,0.89510134,185.71,185.51,4.7959]
[1734872972429,0.89513961,185.7,185.51,4.7959]
[1734872972625,0.89513961,185.69,185.51,4.7959]
[1734872972833,1.07712193,185.68,185.44,3.22]
[1734872973033,16.19,185.66,185.45,4.9825]
[1734872973223,0.89497059,185.65,185.45,4.9825]
[1734872973626,3.4309,185.64,185.45,4.9825]
[1734872973823,0.89497059,185.63,185.45,4.9825]
[1734872974036,3.22,185.62,185.45,4.9825]
[1734872974334,3.22,185.62,185.47,2.6975]
[1734872975531,3.22,185.62,185.46,2.6977]
[1734872975732,0.89522339,185.61,185.45,4.9825]
[1734872976526,0.89522339,185.61,185.45,3.3715]
[1734872977523,0.89522339,185.61,185.46,1.5812]
[1734872980825,3.22,185.62,185.46,1.5812]
[1734872981031,0.8951233,185.61,185.48,2.6974]
[1734872981226,3.22,185.62,185.48,2.6974]
[1734872981431,3.4309,185.64,185.48,2.6974]
[1734872981634,3.4309,185.64,185.46,1.5812]
[1734872981635,3.08,185.63,185.46,1.5812]
[1734872982030,50.47233214,185.65,185.46,1.5812]
[1734872982231,3.08,185.64,185.46,1.5812]
[1734872982641,50.47233214,185.65,185.46,1.5812]
[1734872982838,3.08,185.63,185.46,1.5812]
[1734872983344,3.08,185.63,185.53,2.6966]
[1734872983639,3.08,185.63,185.54,4.9682]
[1734872984643,3.08,185.66,185.54,4.9682]
[1734872985043,1.07712193,185.68,185.61,2.6955]
[1734872985539,1.07712193,185.68,185.57,3.08]
[1734872985747,3.08,185.72,185.57,3.08]
[1734872986045,3.08,185.73,185.57,3.08]
[1734872986646,3.08,185.73,185.57,61.96716663]
[1734872987143,4.3393,185.82,185.65,2.6949]
[1734872987350,3.97591132,185.81,185.66,3.3945]
[1734872987645,0.89591132,185.8,185.66,3.3945]
[1734872988549,0.8958899,185.79,185.66,6.0893]
[1734872988851,3.08,185.81,185.66,6.0893]
[1734872989041,0.89575646,185.8,185.66,6.0893]
[1734872989543,0.89575646,185.8,185.66,3.3945]
[1734872990343,0.89561642,185.79,185.66,3.3945]
[1734872990544,3.08,185.81,185.66,3.3945]
[1734872990744,0.8954982,185.8,185.66,3.3945]
[1734872991750,0.8954982,185.8,185.58,3.08]
[1734872991954,0.8954982,185.8,185.59,2.6957]
[1734872992252,0.8954982,185.8,185.56,8.1574]
[1734872992849,0.8954982,185.8,185.65,2.6949]
[1734872993045,3.08,185.81,185.56,3.4417]
[1734872993046,0.89544436,185.79,185.56,3.4417]
[1734872993252,0.89544436,185.78,185.57,1.6205]
[1734872993453,0.89544436,185.77,185.57,1.6205]
[1734872993751,20.16544436,185.76,185.57,1.6205]
[1734872993951,3.97544436,185.75,185.57,1.6205]
[1734872994152,0.89544436,185.74,185.57,1.6205]
[1734872994352,1.97464436,185.74,185.59,2.6958]
[1734872994548,3.08,185.73,185.59,2.6958]
[1734872994851,3.08,185.73,185.6,2.6957]
[1734872995257,3.08,185.72,185.57,1.6205]
[1734872995455,3.08,185.72,185.59,2.6958]
[1734872995653,3.08,185.72,185.57,1.6205]
[1734872996051,3.08,185.72,185.59,2.6957]
[1734872996252,3.08,185.72,185.57,1.6205]
[1734872997060,3.08,185.72,185.61,2.6955]
[1734872997256,25.76320558,185.81,185.61,2.6955]
[1734872997257,12.03334233,185.8,185.61,2.6955]
[1734872997457,20.16519327,185.79,185.61,2.6955]
[1734872997660,0.89519327,185.78,185.61,2.6955]
[1734872997852,5.28647811,185.78,185.61,2.6955]
[1734872998058,0.89519327,185.77,185.61,2.6955]
[1734872998261,0.89538132,185.76,185.61,2.6955]
[1734872998561,0.89538132,185.75,185.65,2.6949]
[1734872998758,16.19,185.78,185.56,1.7207]
[1734872998956,16.19,185.76,185.58,1.7106]
[1734872999153,0.8953506,185.75,185.58,1.7106]
[1734872999357,3.08,185.74,185.58,4.4064]
[1734872999862,0.89535403,185.73,185.58,4.4064]
[1734873000062,0.89535403,185.73,185.6,2.6957]
[1734873000659,3.08,185.74,185.6,2.6957]
[1734873000863,0.89511528,185.73,185.6,2.6957]
[1734873001266,3.08,185.74,185.58,1.7106]
[1734873001864,16.19,185.73,185.49,58.88716663]
[1734873002058,16.19,185.73,185.5,5.0414]
[1734873002059,0.89536063,185.72,185.5,5.0414]
[1734873002574,1.97225057,185.72,185.5,3.3539]
[1734873002773,17.08536063,185.71,185.5,3.3539]
[1734873002969,16.19,185.69,185.5,3.3539]
[1734873003170,16.19,185.67,185.5,3.3539]
[1734873003472,0.89492985,185.66,185.5,3.3539]
[1734873003872,16.19,185.65,185.5,3.3539]
[1734873004073,0.89492985,185.64,185.5,3.3539]
[1734873004270,19.27,185.63,185.5,1.6861]
[1734873004575,0.89492985,185.62,185.5,1.6861]
[1734873004774,0.89492985,185.62,185.45,1.6875]
[1734873004970,16.19,185.61,185.45,1.6875]
[1734873005174,0.8949216,185.6,185.45,1.6875]
[1734873006169,16.19,185.62,185.45,1.6875]
[1734873006367,3.99534263,185.61,185.45,1.6875]
[1734873006564,0.89534263,185.6,185.45,1.6875]
[1734873006775,0.89534263,185.6,185.47,2.6975]
[1734873006972,3.1,185.61,185.45,1.6875]
[1734873007269,3.1,185.61,185.46,2.6976]
[1734873007470,0.89562413,185.6,185.46,2.6976]
[1734873007675,3.1,185.61,185.46,2.6976]
[1734873007869,0.89585394,185.6,185.46,2.6976]
[1734873008077,3.1,185.61,185.45,1.6875]
[1734873008376,20.5834132,185.69,185.45,1.6875]
[1734873008565,3.9960079,185.67,185.5,2.697]
[1734873008767,0.8960079,185.66,185.5,2.697]
[1734873008968,0.8960079,185.66,185.48,3.12]
[1734873009174,0.8960079,185.66,185.54,2.6965]
[1734873009369,0.8960079,185.66,185.55,4.9994]
[1734873009675,3.12,185.65,185.55,4.9994]
[1734873010479,3.12,185.66,185.55,4.9994]
[1734873010869,3.12,185.66,185.58,2.6959]
[1734873011269,3.12,185.68,185.58,2.6959]
[1734873012775,3.12,185.68,185.59,2.6958]
[1734873013071,3.1,185.7,185.58,3.1]
[1734873013275,3.1,185.71,185.58,3.1]
[1734873014376,3.1,185.71,185.61,2.6955]
[1734873014774,1.6602,185.78,185.58,3.1]
[1734873014976,3.99636728,185.77,185.64,2.695]
[1734873015276,3.99636728,185.76,185.65,4.9108]
[1734873015576,3.1,185.75,185.65,4.9108]
[1734873017175,16.19,185.86,185.65,4.9108]
[1734873017377,3.99658396,185.85,185.65,4.9108]
[1734873017573,0.89658396,185.84,185.7,2.6941]
[1734873017772,3.1,185.83,185.69,3.1]
[1734873017974,0.89658396,185.82,185.69,3.1]
[1734873018176,3.1,185.81,185.71,2.694]
[1734873018575,3.1,185.81,185.69,3.1]
[1734873018776,3.1,185.81,185.72,2.6939]
[1734873019075,3.1,185.81,185.73,1.6363]
[1734873019574,3.1,185.81,185.74,1.5919]
[1734873019784,0.89659077,185.8,185.74,1.5919]
[1734873020076,1.6286,185.88,185.74,1.5919]
[1734873020379,3.99650196,185.87,185.75,1.6116]
[1734873020574,0.89650196,185.86,185.75,1.6116]
[1734873021182,3.1,185.87,185.75,1.6116]
[1734873021480,3.99653433,185.86,185.75,1.6116]
[1734873021676,0.89653433,185.85,185.75,1.6116]
[1734873021877,0.89653433,185.84,185.75,1.6116]
[1734873022078,3.1,185.85,185.75,1.6116]
[1734873022280,3.1,185.86,185.75,1.6116]
[1734873022473,3.1,185.86,185.78,2.693]
[1734873022879,3.1,185.86,185.77,2.6932]
[1734873023283,3.1,185.87,185.75,1.6116]
[1734873023481,0.89671442,185.86,185.78,2.693]
[1734873023782,3.1,185.87,185.78,2.693]
[1734873023985,0.89678147,185.86,185.77,3.1]
[1734873024178,3.1,185.87,185.79,2.6929]
[1734873024482,1.6174,185.95,185.77,3.1]
[1734873024676,0.89703007,185.94,185.77,3.1]
[1734873025177,7.41291271,186.0,185.87,2.6917]
[1734873025178,3.1,185.95,185.87,2.6917]
[1734873025378,3.1,185.97,185.88,3.2427]
[1734873025573,0.89714023,185.96,185.88,3.2427]
[1734873025773,3.1,185.98,185.89,2.6914]
[1734873025973,3.1,185.98,185.88,3.2427]
[1734873026985,3.1,185.98,185.9,2.6913]
[1734873027374,3.1,185.98,185.88,3.2427]
[1734873028375,3.1,185.98,185.89,2.6913]
[1734873028985,3.1,185.98,185.91,2.6911]
[1734873029981,3.1,185.98,185.92,2.691]
[1734873030282,1.5747,186.07,185.9,3.1]
[1734873030483,3.99694653,186.06,185.9,3.1]
[1734873030684,0.89694653,186.05,185.94,2.6906]
[1734873030988,3.1,186.06,185.95,1.6344]
[1734873031289,3.1,186.06,185.95,4.325]
[1734873031484,3.1,186.06,185.95,1.6344]
[1734873031990,2.7647,186.11,185.95,4.7344]
[1734873032179,3.99705776,186.1,185.95,4.7344]
[1734873032383,0.89705776,186.09,185.98,2.69]
[1734873032786,0.89705776,186.09,185.99,1.625]
[1734873032987,3.1,186.1,185.99,3.3213]
[1734873033491,3.1,186.1,185.95,1.6344]
[1734873033492,0.89711828,186.09,185.95,1.6344]
[1734873033885,0.89711828,186.09,185.76,3.3213]
[1734873034085,0.89711828,186.09,185.78,1.5693]
[1734873034490,0.89711828,186.09,185.87,2.6917]
[1734873034692,0.89711828,186.09,185.88,4.9535]
[1734873035784,16.19,186.08,185.88,4.9535]
[1734873036086,0.89711828,186.07,185.88,4.9535]
[1734873036486,1.97341225,186.06,185.88,4.9535]
[1734873036686,3.93651225,186.05,185.88,4.9535]
[1734873036889,0.89651225,186.04,185.88,1.6627]
[1734873037087,2.47491225,186.04,185.83,3.04]
[1734873037393,0.89651225,186.03,185.85,2.692]
[1734873038389,0.89651225,186.03,185.86,1.5845]
[1734873039983,3.04,186.02,185.86,1.5845]
[1734873040186,0.89651225,186.01,185.86,1.5845]
[1734873041385,3.04,186.0,185.86,1.5845]
[1734873041787,1.6014,186.05,185.86,1.5845]
[1734873041988,3.04,186.04,185.86,1.5845]
[1734873042190,3.04,186.04,185.93,2.6908]
[1734873042386,3.04,186.04,185.94,3.2641]
[1734873042587,3.04,186.04,185.95,1.5899]
[1734873042884,16.19,186.13,185.95,1.5899]
[1734873043089,0.89652368,186.12,185.95,1.5899]
[1734873043285,3.93652368,186.11,185.95,1.5899]
[1734873043489,3.04,186.11,185.95,1.5899]
[1734873043689,4.2668,186.14,186.0,2.6899]
[1734873043889,3.9364129,186.13,186.0,2.6899]
[1734873044090,0.89649778,186.12,186.0,2.6899]
[1734873044287,0.89649778,186.12,186.02,2.6896]
[1734873044492,3.04,186.12,186.03,1.6007]
[1734873045190,3.04,186.12,186.04,1.6259]
[1734873046188,3.04,186.12,186.05,1.6021]
[1734873046593,3.04,186.12,186.03,1.6007]
[1734873048196,3.04,186.12,186.0,1.6021]
[1734873049792,3.04,186.12,186.0,3.2261]
[1734873050095,3.04,186.12,186.0,5.916]
[1734873050297,3.04,186.12,186.0,3.2261]
[1734873051792,3.04,186.12,186.0,5.9159]
[1734873052793,3.04,186.12,186.01,2.6897]
[1734873053995,3.04,186.12,186.02,2.6895]
[1734873054294,61.6,186.16,186.01,3.04]
[1734873054497,3.04,186.12,186.03,2.6894]
[1734873055896,3.04,186.12,185.9,43.16457168]
[1734873056194,3.04,186.12,185.91,8.0334]
[1734873056690,3.04,186.12,185.92,3.04]
[1734873057097,0.89666034,186.11,185.92,3.04]
[1734873057295,3.04,186.12,185.92,3.04]
[1734873058198,3.04,186.12,185.96,2.6904]
[1734873058392,0.89674157,186.11,185.92,3.04]
[1734873058792,4.3484,186.1,185.93,2.6908]
[1734873060405,4.3484,186.1,185.92,5.731]
[1734873060593,0.89660105,186.09,185.92,5.731]
[1734873060995,0.89660105,186.09,185.92,3.04]
[1734873061199,0.89660105,186.09,185.93,2.6908]
[1734873061404,4.3484,186.1,185.92,3.04]
[1734873061799,3.04,186.09,185.94,2.6907]
[1734873062100,3.04,186.09,185.92,3.04]
[1734873062800,0.8966322,186.08,185.92,3.04]
[1734873063199,0.8966322,186.08,185.92,2.691]
[1734873063600,4.3484,186.1,185.91,4.9934]
[1734873063898,3.04,186.09,185.91,4.9934]
[1734873064105,3.2738,186.1,185.97,2.6902]
[1734873064505,3.04,186.09,185.96,3.04]
[1734873064800,3.04,186.09,185.91,4.9934]
[1734873065001,3.04,186.09,185.91,7.9734]
[1734873065204,0.89713341,186.08,185.91,7.9734]
[1734873065404,0.89713341,186.08,185.91,10.6645]
[1734873066006,0.89713341,186.08,185.92,2.6909]
[1734873066406,3.04,186.09,185.92,2.6909]
[1734873066612,0.89676647,186.08,185.83,58.88716663]
[1734873066903,0.89676647,186.08,185.84,8.0107]
[1734873067105,3.04,186.09,185.84,8.0107]
[1734873067300,3.04,186.09,185.94,2.6906]
[1734873067508,3.04,186.09,185.95,5.0307]
[1734873068905,0.89726329,186.08,185.95,5.0307]
[1734873069104,0.89725501,186.08,185.95,5.0307]
[1734873070208,0.89725501,186.08,185.84,58.88716663]
[1734873070508,1.077,186.07,185.85,5.0015]
[1734873070711,0.89725501,186.06,185.85,5.0015]
[1734873071303,21.45616804,186.06,185.85,5.0015]
[1734873071500,0.89708642,186.05,185.85,5.0015]
[1734873071711,2.98,186.04,185.9,2.6913]
[1734873072007,2.98,186.04,185.87,2.98]
[1734873072312,0.89715113,186.03,185.89,2.6914]
[1734873074314,2.98,186.02,185.87,2.98]
[1734873074612,2.98,186.01,185.87,2.98]
[1734873074816,2.98,186.02,185.87,2.98]
[1734873075109,2.98,186.03,185.87,2.98]
[1734873075408,2.98,186.03,185.97,2.6902]
[1734873075609,2.98,186.03,185.98,4.9535]
[1734873075809,2.98,186.07,185.98,4.9535]
[1734873076109,4.36891303,186.13,185.98,7.6435]
[1734873076414,3.87792823,186.12,185.99,2.69]
[1734873076607,7.54801303,186.15,185.98,4.9535]
[1734873076808,3.87794007,186.14,185.99,2.98]
[1734873077003,0.89794007,186.13,186.02,2.6896]
[1734873077511,2.98,186.12,186.02,2.6896]
[1734873077713,2.98,186.12,185.99,2.98]
[1734873077913,3.1791,186.15,186.03,2.6894]
[1734873078117,2.98,186.14,186.03,2.6894]
[1734873078713,2.98,186.14,185.99,2.98]
[1734873078913,2.98,186.14,186.02,2.6896]
[1734873079316,2.98,186.14,185.99,2.98]
[1734873080620,2.98,186.14,186.02,2.6896]
[1734873080816,2.98,186.14,185.98,4.9535]
[1734873081016,0.8984919,186.13,185.98,4.9535]
[1734873082118,19.5928,186.12,185.98,4.9535]
[1734873082320,3.8784919,186.11,185.98,4.9535]
[1734873082623,0.8984919,186.1,185.98,4.9535]
[1734873083516,17.0884919,186.1,185.98,4.9535]
[1734873083719,0.8984919,186.09,185.98,4.9535]
[1734873085021,0.89839809,186.08,185.98,4.9535]
[1734873085217,8.48558619,186.11,185.98,4.9535]
[1734873085424,0.89818479,186.1,185.98,4.9535]
[1734873087626,0.8979661,186.09,185.98,4.9535]
[1734873087820,0.8979661,186.08,185.98,4.9535]
[1734873088018,24.67558619,186.11,185.98,4.9535]